[Event "*** Titled Tuesday Blitz"]
[Site "Chess.com"]
[Date "2020.05.19"]
[Round "7"]
[White "Alexander_Moskalenko"]
[Black "AminMolaei"]
[Result "0-1"]
[WhiteElo "2816"]
[BlackElo "2651"]
[TimeControl "180+1"]
[EndTime "13:18:52 PDT"]
[Termination "AminMolaei won by resignation"]

1. d4 {[%clk 0:03:00.9]} 1... e6 {[%clk 0:02:57.7]} 2. c4 {[%clk 0:03:00.5]}
2... b6 {[%clk 0:02:56.7]} 3. Nf3 {[%clk 0:03:01.4]} 3... Bb7 {[%clk 0:02:54.6]}
4. g3 {[%clk 0:03:02.3]} 4... f5 {[%clk 0:02:52.9]} 5. Bg2 {[%clk 0:03:01.9]}
5... Nf6 {[%clk 0:02:53]} 6. Nc3 {[%clk 0:03:02.6]} 6... Bb4 {[%clk 0:02:52.5]}
7. Qb3 {[%clk 0:03:02]} 7... Be7 {[%clk 0:02:50]} 8. d5 {[%clk 0:02:59.4]} 8...
O-O {[%clk 0:02:47.8]} 9. O-O {[%clk 0:02:57.7]} 9... a5 {[%clk 0:02:47.6]} 10.
dxe6 {[%clk 0:02:46.2]} 10... dxe6 {[%clk 0:02:43]} 11. c5 {[%clk 0:02:45.5]}
11... Bxc5 {[%clk 0:02:34.4]} 12. Qxe6+ {[%clk 0:02:43.8]} 12... Kh8 {[%clk
0:02:34.8]} 13. Bg5 {[%clk 0:02:18.1]} 13... Qd7 {[%clk 0:02:27.6]} 14. Qc4
{[%clk 0:01:58.2]} 14... Qe8 {[%clk 0:01:44.7]} 15. Bxf6 {[%clk 0:01:40.1]}
15... Rxf6 {[%clk 0:01:43.2]} 16. Nd5 {[%clk 0:01:40.6]} 16... Bxd5 {[%clk
0:01:33.5]} 17. Qxd5 {[%clk 0:01:40.3]} 17... Nc6 {[%clk 0:01:33.5]} 18. e3
{[%clk 0:01:27.1]} 18... Rd8 {[%clk 0:01:30.9]} 19. Qc4 {[%clk 0:01:27]} 19...
Rfd6 {[%clk 0:01:27.2]} 20. a3 {[%clk 0:01:24.9]} 20... Qe7 {[%clk 0:01:19.3]}
21. Rab1 {[%clk 0:01:23.8]} 21... Re6 {[%clk 0:00:56]} 22. Nh4 {[%clk
0:01:23.2]} 22... Ne5 {[%clk 0:00:49.7]} 23. Qa2 {[%clk 0:01:14.6]} 23... Qf6
{[%clk 0:00:43.4]} 24. b4 {[%clk 0:01:13.1]} 24... axb4 {[%clk 0:00:43.2]} 25.
axb4 {[%clk 0:01:14]} 25... Bd6 {[%clk 0:00:43.6]} 26. Qc2 {[%clk 0:01:12.7]}
26... g6 {[%clk 0:00:41.7]} 27. Rfd1 {[%clk 0:01:12.5]} 27... Re7 {[%clk
0:00:38.6]} 28. Qc6 {[%clk 0:01:09.3]} 28... Nxc6 {[%clk 0:00:37.6]} 0-1

[Event "*** Titled Tuesday Blitz"]
[Site "Chess.com"]
[Date "2020.05.19"]
[Round "7"]
[White "EmeseBalogh"]
[Black "barbara25"]
[Result "0-1"]
[WhiteElo "1942"]
[BlackElo "2188"]
[TimeControl "180+1"]
[EndTime "13:18:52 PDT"]
[Termination "barbara25 won by resignation"]

1. e4 {[%clk 0:03:00.9]} 1... c5 {[%clk 0:02:59.5]} 2. Nc3 {[%clk 0:02:59.6]}
2... a6 {[%clk 0:02:59]} 3. g3 {[%clk 0:02:57.4]} 3... b5 {[%clk 0:02:58.4]} 4.
Bg2 {[%clk 0:02:57.2]} 4... Bb7 {[%clk 0:02:57.8]} 5. d3 {[%clk 0:02:57.1]} 5...
e6 {[%clk 0:02:57.5]} 6. Be3 {[%clk 0:02:55.5]} 6... d6 {[%clk 0:02:56]} 7. Qd2
{[%clk 0:02:53.5]} 7... Nd7 {[%clk 0:02:56]} 8. f4 {[%clk 0:02:53.4]} 8... Ne7
{[%clk 0:02:55.5]} 9. Nf3 {[%clk 0:02:52.9]} 9... d5 {[%clk 0:02:53.6]} 10. exd5
{[%clk 0:02:52.1]} 10... exd5 {[%clk 0:02:53.5]} 11. d4 {[%clk 0:02:51.1]} 11...
c4 {[%clk 0:02:52.9]} 12. O-O {[%clk 0:02:47.3]} 12... b4 {[%clk 0:02:39.5]} 13.
Ne2 {[%clk 0:02:46.4]} 13... a5 {[%clk 0:02:39.2]} 14. Ne5 {[%clk 0:02:43.6]}
14... g6 {[%clk 0:02:24.7]} 15. c3 {[%clk 0:02:37]} 15... Nf5 {[%clk 0:02:16.6]}
16. Bf2 {[%clk 0:02:30.5]} 16... Bd6 {[%clk 0:02:09.9]} 17. Rae1 {[%clk
0:02:09]} 17... O-O {[%clk 0:02:08.2]} 18. Kh1 {[%clk 0:01:34.9]} 18... b3
{[%clk 0:01:47.6]} 19. axb3 {[%clk 0:01:33.4]} 19... cxb3 {[%clk 0:01:47.2]} 20.
Rd1 {[%clk 0:01:14.5]} 20... a4 {[%clk 0:01:45.8]} 21. Nc1 {[%clk 0:01:06.6]}
21... Ng7 {[%clk 0:01:41.7]} 22. g4 {[%clk 0:01:04.8]} 22... Nf6 {[%clk
0:01:27.9]} 23. h3 {[%clk 0:01:02.6]} 23... Ne4 {[%clk 0:01:26.8]} 24. Qe2
{[%clk 0:00:53.6]} 24... f6 {[%clk 0:01:21.7]} 25. Nf3 {[%clk 0:00:48.3]} 25...
Bxf4 {[%clk 0:01:19.5]} 26. Nd3 {[%clk 0:00:46.3]} 26... Bd6 {[%clk 0:01:12.3]}
27. Be1 {[%clk 0:00:37]} 27... Re8 {[%clk 0:01:09.1]} 0-1

[Event "*** Titled Tuesday Blitz"]
[Site "Chess.com"]
[Date "2020.05.19"]
[Round "7"]
[White "katchesskat"]
[Black "Xtrmntr78"]
[Result "0-1"]
[WhiteElo "2228"]
[BlackElo "2372"]
[TimeControl "180+1"]
[EndTime "13:18:58 PDT"]
[Termination "Xtrmntr78 won by checkmate"]

1. c4 {[%clk 0:02:49.2]} 1... Nf6 {[%clk 0:02:57.5]} 2. e3 {[%clk 0:02:06.5]}
2... e6 {[%clk 0:02:53.1]} 3. Nf3 {[%clk 0:02:07.4]} 3... b6 {[%clk 0:02:53]} 4.
a3 {[%clk 0:02:08.3]} 4... Bb7 {[%clk 0:02:53.4]} 5. Be2 {[%clk 0:02:08.5]} 5...
c5 {[%clk 0:02:53.9]} 6. Qc2 {[%clk 0:02:08.9]} 6... d5 {[%clk 0:02:53.3]} 7.
O-O {[%clk 0:02:09.5]} 7... Be7 {[%clk 0:02:47]} 8. b3 {[%clk 0:02:06.2]} 8...
Nc6 {[%clk 0:02:45.3]} 9. Bb2 {[%clk 0:02:05.5]} 9... O-O {[%clk 0:02:45.7]} 10.
d3 {[%clk 0:02:03.8]} 10... Rc8 {[%clk 0:02:44.3]} 11. Nbd2 {[%clk 0:02:03.1]}
11... Qc7 {[%clk 0:02:43.6]} 12. h3 {[%clk 0:02:02.5]} 12... Rfd8 {[%clk
0:02:42.4]} 13. Rfe1 {[%clk 0:02:02.3]} 13... Qb8 {[%clk 0:02:42.4]} 14. Rac1
{[%clk 0:02:01.8]} 14... a6 {[%clk 0:02:41.6]} 15. Qb1 {[%clk 0:02:01.4]} 15...
b5 {[%clk 0:02:41.1]} 16. Qa1 {[%clk 0:02:00.5]} 16... Ne8 {[%clk 0:02:37.8]}
17. Nh2 {[%clk 0:01:57.9]} 17... d4 {[%clk 0:02:30.9]} 18. exd4 {[%clk
0:01:52.9]} 18... Nxd4 {[%clk 0:02:29.4]} 19. Bxd4 {[%clk 0:01:53]} 19... Rxd4
{[%clk 0:02:27.7]} 20. cxb5 {[%clk 0:01:52]} 20... axb5 {[%clk 0:02:26.6]} 21.
Ndf3 {[%clk 0:01:51.8]} 21... Rdd8 {[%clk 0:02:25.3]} 22. a4 {[%clk 0:01:51.8]}
22... Bf6 {[%clk 0:02:24.5]} 23. Qa3 {[%clk 0:01:42.1]} 23... b4 {[%clk
0:02:23]} 24. Qa2 {[%clk 0:01:42.1]} 24... Ba6 {[%clk 0:02:23.5]} 25. Red1
{[%clk 0:01:37.9]} 25... Bc3 {[%clk 0:02:22.4]} 26. Ng4 {[%clk 0:01:36.3]} 26...
Nc7 {[%clk 0:02:19.9]} 27. Nge5 {[%clk 0:01:34.6]} 27... Nd5 {[%clk 0:02:18.8]}
28. Nc4 {[%clk 0:01:34.6]} 28... Nf4 {[%clk 0:02:17.7]} 29. Bf1 {[%clk
0:01:34.8]} 29... Bb7 {[%clk 0:02:16.6]} 30. Nh2 {[%clk 0:01:11.2]} 30... Bd4
{[%clk 0:02:14.3]} 31. Qd2 {[%clk 0:01:06.7]} 31... Nxh3+ {[%clk 0:02:12.5]} 32.
Kh1 {[%clk 0:00:53.4]} 32... Nxf2+ {[%clk 0:02:06.6]} 33. Kg1 {[%clk 0:00:52.7]}
33... Ne4+ {[%clk 0:02:06.2]} 34. Kh1 {[%clk 0:00:49.6]} 34... Nf2+ {[%clk
0:02:03.8]} 35. Qxf2 {[%clk 0:00:43.1]} 35... Bxf2 {[%clk 0:02:02.5]} 36. Rc2
{[%clk 0:00:42.3]} 36... Qg3 {[%clk 0:02:00.9]} 37. Re2 {[%clk 0:00:34.7]} 37...
Rd4 {[%clk 0:01:58]} 38. Ne5 {[%clk 0:00:06.5]} 38... Qxh2+ {[%clk 0:01:54.2]}
39. Kxh2 {[%clk 0:00:05]} 39... Rh4# {[%clk 0:01:53.8]} 0-1

[Event "*** Titled Tuesday Blitz"]
[Site "Chess.com"]
[Date "2020.05.19"]
[Round "7"]
[White "Ceejay271"]
[Black "elohunter1999"]
[Result "0-1"]
[WhiteElo "2391"]
[BlackElo "2545"]
[TimeControl "180+1"]
[EndTime "13:19:02 PDT"]
[Termination "elohunter1999 won by resignation"]

1. d4 {[%clk 0:03:00.9]} 1... Nf6 {[%clk 0:02:59.2]} 2. Nf3 {[%clk 0:02:58.5]}
2... d5 {[%clk 0:02:58.3]} 3. c4 {[%clk 0:02:57.5]} 3... e6 {[%clk 0:02:58.2]}
4. g3 {[%clk 0:02:56.7]} 4... dxc4 {[%clk 0:02:55.7]} 5. Bg2 {[%clk 0:02:56.5]}
5... a6 {[%clk 0:02:56.3]} 6. O-O {[%clk 0:02:56]} 6... Nc6 {[%clk 0:02:56.7]}
7. e3 {[%clk 0:02:48.9]} 7... Rb8 {[%clk 0:02:53.6]} 8. Nfd2 {[%clk 0:02:46.9]}
8... e5 {[%clk 0:02:51.9]} 9. Bxc6+ {[%clk 0:02:42.3]} 9... bxc6 {[%clk
0:02:52.8]} 10. dxe5 {[%clk 0:02:42.3]} 10... Ng4 {[%clk 0:02:52.7]} 11. Nxc4
{[%clk 0:02:41.3]} 11... Be6 {[%clk 0:02:49.2]} 12. b3 {[%clk 0:02:23.1]} 12...
h5 {[%clk 0:01:57.1]} 13. Qxd8+ {[%clk 0:02:11.3]} 13... Kxd8 {[%clk 0:01:54.9]}
14. f4 {[%clk 0:01:52.2]} 14... Bc5 {[%clk 0:01:52.5]} 15. Re1 {[%clk
0:01:51.2]} 15... g5 {[%clk 0:01:32.9]} 16. Kg2 {[%clk 0:01:48]} 16... gxf4
{[%clk 0:01:31.2]} 17. exf4 {[%clk 0:01:43]} 17... Bd5+ {[%clk 0:01:31]} 18. Kf1
{[%clk 0:01:27.1]} 18... Nxh2+ {[%clk 0:01:28.5]} 19. Ke2 {[%clk 0:01:26]} 19...
Bd4 {[%clk 0:01:28.1]} 20. Nb2 {[%clk 0:01:19.9]} 20... Rg8 {[%clk 0:01:20.1]}
21. Kd3 {[%clk 0:01:03.5]} 21... Rxg3+ {[%clk 0:01:12.7]} 22. Kxd4 {[%clk
0:01:01.7]} 22... Nf3+ {[%clk 0:01:00]} 23. Ke3 {[%clk 0:00:56.6]} 23... Nxe1+
{[%clk 0:00:58.5]} 24. Kf2 {[%clk 0:00:56.2]} 24... h4 {[%clk 0:00:48.1]} 25.
Kxe1 {[%clk 0:00:52.8]} 25... h3 {[%clk 0:00:46.9]} 26. Kf2 {[%clk 0:00:36.3]}
26... Rg2+ {[%clk 0:00:43.6]} 0-1

[Event "*** Titled Tuesday Blitz"]
[Site "Chess.com"]
[Date "2020.05.19"]
[Round "7"]
[White "ErikBlomqvist"]
[Black "IngOscarArdila"]
[Result "1-0"]
[WhiteElo "2284"]
[BlackElo "2039"]
[TimeControl "180+1"]
[EndTime "13:19:03 PDT"]
[Termination "ErikBlomqvist won by checkmate"]

1. e4 {[%clk 0:03:00.9]} 1... e5 {[%clk 0:02:59.5]} 2. Nf3 {[%clk 0:02:59.4]}
2... Nf6 {[%clk 0:02:59.9]} 3. Nxe5 {[%clk 0:02:58.6]} 3... d6 {[%clk
0:03:00.1]} 4. Nf3 {[%clk 0:02:59.1]} 4... Nxe4 {[%clk 0:03:00.3]} 5. d3 {[%clk
0:02:59.7]} 5... Nf6 {[%clk 0:03:00.4]} 6. d4 {[%clk 0:03:00.3]} 6... Be7 {[%clk
0:03:00.8]} 7. Bd3 {[%clk 0:03:00.1]} 7... O-O {[%clk 0:03:01.3]} 8. O-O {[%clk
0:03:00.7]} 8... Re8 {[%clk 0:03:01.3]} 9. h3 {[%clk 0:03:00.9]} 9... Nbd7
{[%clk 0:03:01.7]} 10. Re1 {[%clk 0:02:59.9]} 10... Nf8 {[%clk 0:03:02.1]} 11.
c3 {[%clk 0:02:54.8]} 11... Be6 {[%clk 0:03:01.8]} 12. Nbd2 {[%clk 0:02:52.7]}
12... Qd7 {[%clk 0:03:01.4]} 13. Nf1 {[%clk 0:02:52.5]} 13... Bf5 {[%clk
0:03:01.3]} 14. Ng3 {[%clk 0:02:49.8]} 14... Bxd3 {[%clk 0:03:00.7]} 15. Qxd3
{[%clk 0:02:50.7]} 15... Ng6 {[%clk 0:02:58.4]} 16. Nf5 {[%clk 0:02:27.7]} 16...
Bf8 {[%clk 0:02:58]} 17. Bg5 {[%clk 0:02:27.2]} 17... Nd5 {[%clk 0:02:49.4]} 18.
g3 {[%clk 0:02:22.2]} 18... Rxe1+ {[%clk 0:02:47.1]} 19. Rxe1 {[%clk 0:02:21]}
19... Re8 {[%clk 0:02:47]} 20. Rxe8 {[%clk 0:02:15.2]} 20... Qxe8 {[%clk
0:02:47.1]} 21. h4 {[%clk 0:02:08.2]} 21... Nde7 {[%clk 0:02:45.1]} 22. Bxe7
{[%clk 0:01:51.8]} 22... Nxe7 {[%clk 0:02:44.2]} 23. Ne3 {[%clk 0:01:44.2]}
23... Qd7 {[%clk 0:02:35]} 24. Kg2 {[%clk 0:01:40.3]} 24... g6 {[%clk
0:02:32.5]} 25. Qe4 {[%clk 0:01:29.5]} 25... c6 {[%clk 0:02:28.7]} 26. Qf4
{[%clk 0:01:28.1]} 26... Bg7 {[%clk 0:02:24.1]} 27. h5 {[%clk 0:01:24.4]} 27...
gxh5 {[%clk 0:01:52.5]} 28. Qg5 {[%clk 0:01:16.4]} 28... Ng6 {[%clk 0:01:40.3]}
29. Qxh5 {[%clk 0:01:15.7]} 29... Qe6 {[%clk 0:01:36.7]} 30. Ng5 {[%clk
0:01:11.6]} 30... Qxa2 {[%clk 0:01:15.2]} 31. Qxh7+ {[%clk 0:01:11.7]} 31... Kf8
{[%clk 0:01:15.4]} 32. Qh3 {[%clk 0:01:11.4]} 32... Bf6 {[%clk 0:00:44.2]} 33.
Nh7+ {[%clk 0:01:03.6]} 33... Kg7 {[%clk 0:00:42.4]} 34. Nf5+ {[%clk 0:01:03.9]}
34... Kg8 {[%clk 0:00:38.7]} 35. Nxf6+ {[%clk 0:01:04.8]} 35... Kf8 {[%clk
0:00:38.2]} 36. Qh6# {[%clk 0:01:01]} 1-0

[Event "*** Titled Tuesday Blitz"]
[Site "Chess.com"]
[Date "2020.05.19"]
[Round "7"]
[White "LostaBet95"]
[Black "K_A_S_T_O_R"]
[Result "0-1"]
[WhiteElo "2549"]
[BlackElo "2730"]
[TimeControl "180+1"]
[EndTime "13:19:14 PDT"]
[Termination "K_A_S_T_O_R won on time"]

1. e4 {[%clk 0:03:00.9]} 1... c5 {[%clk 0:02:59.8]} 2. Nf3 {[%clk 0:03:00.9]}
2... d6 {[%clk 0:02:59.8]} 3. d4 {[%clk 0:03:01.3]} 3... cxd4 {[%clk 0:02:59.5]}
4. Nxd4 {[%clk 0:03:02.2]} 4... Nf6 {[%clk 0:02:59.3]} 5. Nc3 {[%clk 0:03:02.7]}
5... a6 {[%clk 0:02:59.8]} 6. f3 {[%clk 0:03:02.8]} 6... e6 {[%clk 0:02:59.6]}
7. Be3 {[%clk 0:02:49.9]} 7... b5 {[%clk 0:02:59.8]} 8. Qd2 {[%clk 0:02:50]}
8... Nbd7 {[%clk 0:02:54.8]} 9. g4 {[%clk 0:02:48.6]} 9... b4 {[%clk 0:02:48.5]}
10. Na4 {[%clk 0:02:46.9]} 10... h6 {[%clk 0:02:46.7]} 11. h4 {[%clk 0:02:44.2]}
11... Ne5 {[%clk 0:02:45.2]} 12. Qxb4 {[%clk 0:02:16.4]} 12... Bd7 {[%clk
0:02:40.1]} 13. b3 {[%clk 0:02:02.1]} 13... d5 {[%clk 0:02:28.3]} 14. Qd2 {[%clk
0:01:40.9]} 14... Bxa4 {[%clk 0:02:23.4]} 15. bxa4 {[%clk 0:01:39.6]} 15... dxe4
{[%clk 0:02:22.4]} 16. Be2 {[%clk 0:01:21.3]} 16... exf3 {[%clk 0:02:19.3]} 17.
Nxf3 {[%clk 0:01:14.1]} 17... Qxd2+ {[%clk 0:02:17]} 18. Nxd2 {[%clk 0:01:03.8]}
18... Nfxg4 {[%clk 0:02:13]} 19. Bb6 {[%clk 0:01:03.5]} 19... Bb4 {[%clk
0:02:02]} 20. Bxg4 {[%clk 0:01:00.5]} 20... Nxg4 {[%clk 0:01:59.3]} 21. Ke2
{[%clk 0:01:00.8]} 21... Rc8 {[%clk 0:01:56]} 22. Rac1 {[%clk 0:00:41.7]} 22...
Ba3 {[%clk 0:01:51.7]} 23. Rb1 {[%clk 0:00:40.7]} 23... Rxc2 {[%clk 0:01:51.7]}
24. Rb3 {[%clk 0:00:36.7]} 24... Bd6 {[%clk 0:01:48.1]} 25. Rg1 {[%clk
0:00:31.1]} 25... h5 {[%clk 0:01:47.5]} 26. Kd3 {[%clk 0:00:27.9]} 26... Rc6
{[%clk 0:01:45.4]} 27. Ne4 {[%clk 0:00:25.8]} 27... O-O {[%clk 0:01:44.2]} 28.
Nxd6 {[%clk 0:00:13.5]} 28... Rxd6+ {[%clk 0:01:43.7]} 29. Kc2 {[%clk
0:00:13.9]} 29... Rc8+ {[%clk 0:01:43.9]} 30. Kb2 {[%clk 0:00:14.1]} 30... Rd2+
{[%clk 0:01:43.1]} 31. Ka3 {[%clk 0:00:14]} 31... Rcc2 {[%clk 0:01:40.3]} 32.
Be3 {[%clk 0:00:04.9]} 32... Rxa2+ {[%clk 0:01:37.3]} 33. Kb4 {[%clk 0:00:05]}
33... Re2 {[%clk 0:01:34.6]} 34. Bd4 {[%clk 0:00:02.7]} 34... Re4 {[%clk
0:01:34.2]} 35. Kc5 {[%clk 0:00:03.1]} 35... Rxa4 {[%clk 0:01:33.1]} 36. Rb8+
{[%clk 0:00:02.9]} 36... Kh7 {[%clk 0:01:32.7]} 0-1

[Event "*** Titled Tuesday Blitz"]
[Site "Chess.com"]
[Date "2020.05.19"]
[Round "7"]
[White "Shahinyan_ChessMood"]
[Black "Sychev_Klementy"]
[Result "0-1"]
[WhiteElo "2664"]
[BlackElo "2838"]
[TimeControl "180+1"]
[EndTime "13:19:15 PDT"]
[Termination "Sychev_Klementy won by resignation"]

1. e4 {[%clk 0:02:34.2]} 1... e5 {[%clk 0:02:58.9]} 2. Nf3 {[%clk 0:02:30.7]}
2... Nc6 {[%clk 0:02:58.5]} 3. Be2 {[%clk 0:02:30.5]} 3... Nf6 {[%clk
0:02:57.4]} 4. d3 {[%clk 0:02:31.4]} 4... d5 {[%clk 0:02:55.9]} 5. Nbd2 {[%clk
0:02:32.3]} 5... Bc5 {[%clk 0:02:55.8]} 6. O-O {[%clk 0:02:32.5]} 6... O-O
{[%clk 0:02:56]} 7. c3 {[%clk 0:02:33]} 7... a5 {[%clk 0:02:55.5]} 8. h3 {[%clk
0:02:32]} 8... a4 {[%clk 0:02:45.7]} 9. Qc2 {[%clk 0:02:30.8]} 9... h6 {[%clk
0:02:36.8]} 10. Rd1 {[%clk 0:02:29.7]} 10... Re8 {[%clk 0:02:03.9]} 11. Nf1
{[%clk 0:02:25.6]} 11... d4 {[%clk 0:01:58.9]} 12. cxd4 {[%clk 0:02:14.9]} 12...
Nxd4 {[%clk 0:01:45.6]} 13. Qxc5 {[%clk 0:01:51.3]} 13... b6 {[%clk 0:01:40.9]}
14. Qa3 {[%clk 0:01:32.3]} 14... Nxe2+ {[%clk 0:01:39.2]} 15. Kh2 {[%clk
0:01:32.6]} 15... c5 {[%clk 0:01:22.6]} 16. b4 {[%clk 0:01:30.5]} 16... Nxe4
{[%clk 0:01:11.9]} 17. Be3 {[%clk 0:01:01.2]} 17... N4c3 {[%clk 0:01:03.4]} 18.
Rd2 {[%clk 0:00:56.6]} 18... Qf6 {[%clk 0:00:50]} 19. bxc5 {[%clk 0:00:48.7]}
19... Bxh3 {[%clk 0:00:31.2]} 20. Kxh3 {[%clk 0:00:34.7]} 20... Qf5+ {[%clk
0:00:29.8]} 21. Kh2 {[%clk 0:00:34.1]} 21... Qh5+ {[%clk 0:00:27.5]} 0-1

[Event "*** Titled Tuesday Blitz"]
[Site "Chess.com"]
[Date "2020.05.19"]
[Round "7"]
[White "Omk124"]
[Black "FedaMaster"]
[Result "0-1"]
[WhiteElo "2371"]
[BlackElo "2529"]
[TimeControl "180+1"]
[EndTime "13:19:21 PDT"]
[Termination "FedaMaster won by resignation"]

1. e4 {[%clk 0:03:00.9]} 1... c5 {[%clk 0:03:00.2]} 2. Nf3 {[%clk 0:03:00.5]}
2... d6 {[%clk 0:03:00.7]} 3. d4 {[%clk 0:03:00.2]} 3... cxd4 {[%clk 0:03:01.6]}
4. Nxd4 {[%clk 0:03:01.1]} 4... Nf6 {[%clk 0:02:59.6]} 5. Nc3 {[%clk 0:03:01.2]}
5... g6 {[%clk 0:03:00.2]} 6. Be3 {[%clk 0:02:59.8]} 6... Bg7 {[%clk 0:03:00.4]}
7. f3 {[%clk 0:03:00.2]} 7... Nc6 {[%clk 0:03:01.3]} 8. Qd2 {[%clk 0:03:00]}
8... O-O {[%clk 0:03:02]} 9. Bc4 {[%clk 0:03:00]} 9... Nd7 {[%clk 0:03:01.9]}
10. O-O-O {[%clk 0:02:59.6]} 10... Nb6 {[%clk 0:03:02.4]} 11. Bb3 {[%clk
0:02:59.6]} 11... Na5 {[%clk 0:03:02.7]} 12. Qe2 {[%clk 0:02:39.9]} 12... a6
{[%clk 0:03:02.3]} 13. h4 {[%clk 0:02:38.7]} 13... e5 {[%clk 0:03:02.4]} 14. Nf5
{[%clk 0:02:24.9]} 14... Nxb3+ {[%clk 0:02:55.7]} 15. axb3 {[%clk 0:02:24.5]}
15... gxf5 {[%clk 0:02:56.6]} 16. exf5 {[%clk 0:02:24.8]} 16... Bxf5 {[%clk
0:02:57.5]} 17. g4 {[%clk 0:02:25.2]} 17... Be6 {[%clk 0:02:56.3]} 18. Ne4
{[%clk 0:02:22.4]} 18... Nd5 {[%clk 0:02:53.1]} 19. Bg5 {[%clk 0:02:03.4]} 19...
f6 {[%clk 0:02:46.2]} 20. Bd2 {[%clk 0:02:01.8]} 20... Rc8 {[%clk 0:02:44.2]}
21. Kb1 {[%clk 0:02:00.9]} 21... Qb6 {[%clk 0:02:23.5]} 22. h5 {[%clk 0:01:58]}
22... h6 {[%clk 0:02:23.4]} 23. Bc1 {[%clk 0:01:54.6]} 23... Rc6 {[%clk
0:02:20.2]} 24. Rhg1 {[%clk 0:01:38.3]} 24... Rfc8 {[%clk 0:02:18.3]} 25. Rg2
{[%clk 0:01:05]} 25... Qa5 {[%clk 0:01:56]} 26. c3 {[%clk 0:01:03]} 26... Nf4
{[%clk 0:01:49.7]} 27. Bxf4 {[%clk 0:01:01.7]} 27... Bxb3 {[%clk 0:01:49.1]} 28.
Be3 {[%clk 0:00:35.1]} 28... Qa2+ {[%clk 0:01:13.2]} 29. Kc1 {[%clk 0:00:29.7]}
29... d5 {[%clk 0:01:11.3]} 30. Ng3 {[%clk 0:00:21.9]} 30... Rxc3+ {[%clk
0:01:09]} 31. bxc3 {[%clk 0:00:17.6]} 31... Rxc3+ {[%clk 0:01:09.9]} 32. Qc2
{[%clk 0:00:17.7]} 32... Qxc2+ {[%clk 0:01:09.3]} 0-1

[Event "*** Titled Tuesday Blitz"]
[Site "Chess.com"]
[Date "2020.05.19"]
[Round "7"]
[White "Enriquack"]
[Black "PlayChessSimple"]
[Result "0-1"]
[WhiteElo "2307"]
[BlackElo "2492"]
[TimeControl "180+1"]
[EndTime "13:19:21 PDT"]
[Termination "PlayChessSimple won by checkmate"]

1. e4 {[%clk 0:03:00.9]} 1... e6 {[%clk 0:02:59.9]} 2. d4 {[%clk 0:03:01.1]}
2... d5 {[%clk 0:03:00]} 3. Nc3 {[%clk 0:03:01.8]} 3... Nf6 {[%clk 0:02:59.5]}
4. Bg5 {[%clk 0:03:01.4]} 4... Bb4 {[%clk 0:02:59]} 5. Ne2 {[%clk 0:03:01]} 5...
dxe4 {[%clk 0:02:49.4]} 6. a3 {[%clk 0:02:58.8]} 6... Be7 {[%clk 0:02:45.5]} 7.
Bxf6 {[%clk 0:02:58.4]} 7... gxf6 {[%clk 0:02:45.1]} 8. Nxe4 {[%clk 0:02:57.1]}
8... a6 {[%clk 0:02:42.7]} 9. Qd3 {[%clk 0:02:49.3]} 9... b5 {[%clk 0:02:39.7]}
10. g4 {[%clk 0:02:49.2]} 10... Bb7 {[%clk 0:02:39.4]} 11. Bg2 {[%clk
0:02:49.3]} 11... Ra7 {[%clk 0:02:21.8]} 12. O-O-O {[%clk 0:02:02]} 12... Nd7
{[%clk 0:02:20.2]} 13. N2g3 {[%clk 0:01:54.5]} 13... Bd5 {[%clk 0:02:14.6]} 14.
f4 {[%clk 0:01:34.1]} 14... Rg8 {[%clk 0:01:49.7]} 15. Bf3 {[%clk 0:01:28.5]}
15... b4 {[%clk 0:01:39.8]} 16. axb4 {[%clk 0:01:24.9]} 16... a5 {[%clk
0:01:35.6]} 17. b5 {[%clk 0:01:03.9]} 17... a4 {[%clk 0:01:35.4]} 18. Nc5 {[%clk
0:00:41]} 18... Nb6 {[%clk 0:01:00.3]} 19. Rhe1 {[%clk 0:00:38.2]} 19... a3
{[%clk 0:00:51]} 20. bxa3 {[%clk 0:00:37.9]} 20... Qa8 {[%clk 0:00:49.2]} 21.
Qxh7 {[%clk 0:00:32.4]} 21... Rf8 {[%clk 0:00:43.1]} 22. Bxd5 {[%clk 0:00:29.9]}
22... Qxd5 {[%clk 0:00:37.4]} 23. Qd3 {[%clk 0:00:29.9]} 23... Nc4 {[%clk
0:00:36.2]} 24. Qe4 {[%clk 0:00:23.1]} 24... Rxa3 {[%clk 0:00:33.4]} 25. Qxd5
{[%clk 0:00:23]} 25... Ra1# {[%clk 0:00:32.9]} 0-1

[Event "*** Titled Tuesday Blitz"]
[Site "Chess.com"]
[Date "2020.05.19"]
[Round "7"]
[White "Gromes7"]
[Black "dolynachess"]
[Result "0-1"]
[WhiteElo "2009"]
[BlackElo "2354"]
[TimeControl "180+1"]
[EndTime "13:19:21 PDT"]
[Termination "dolynachess won on time"]

1. d4 {[%clk 0:02:59.9]} 1... Nf6 {[%clk 0:02:56.3]} 2. g3 {[%clk 0:03:00.1]}
2... c5 {[%clk 0:02:55]} 3. d5 {[%clk 0:02:57.9]} 3... b5 {[%clk 0:02:53]} 4.
Bg2 {[%clk 0:02:55.1]} 4... d6 {[%clk 0:02:53.2]} 5. b3 {[%clk 0:02:26.2]} 5...
g6 {[%clk 0:02:52.2]} 6. Bb2 {[%clk 0:02:25.9]} 6... Bg7 {[%clk 0:02:52.8]} 7.
e4 {[%clk 0:02:21.8]} 7... O-O {[%clk 0:02:51.6]} 8. h3 {[%clk 0:02:02.8]} 8...
Re8 {[%clk 0:02:48.1]} 9. Nf3 {[%clk 0:02:01.3]} 9... Nxe4 {[%clk 0:02:43.6]}
10. Bxg7 {[%clk 0:01:59.9]} 10... Kxg7 {[%clk 0:02:44.5]} 11. c4 {[%clk
0:01:52.2]} 11... Qa5+ {[%clk 0:02:41.7]} 12. Nbd2 {[%clk 0:01:50.5]} 12... Nc3
{[%clk 0:02:21]} 13. Qc2 {[%clk 0:01:46.8]} 13... Bf5 {[%clk 0:02:19.6]} 14. Qb2
{[%clk 0:01:42.6]} 14... Kg8 {[%clk 0:02:10.7]} 15. Rc1 {[%clk 0:01:25]} 15...
Qxa2 {[%clk 0:01:57.9]} 16. Qxc3 {[%clk 0:01:20.6]} 16... b4 {[%clk 0:01:57.4]}
17. Qa1 {[%clk 0:01:14.5]} 17... Qxa1 {[%clk 0:01:57.4]} 18. Rxa1 {[%clk
0:01:14.4]} 18... a5 {[%clk 0:01:56.1]} 19. O-O {[%clk 0:01:13.2]} 19... Nd7
{[%clk 0:01:55.8]} 20. Rfe1 {[%clk 0:01:10]} 20... Nb6 {[%clk 0:01:53.9]} 21. g4
{[%clk 0:00:49.1]} 21... Bd7 {[%clk 0:01:51]} 22. Re3 {[%clk 0:00:45.6]} 22...
Ra7 {[%clk 0:01:47.2]} 23. Ne1 {[%clk 0:00:28.7]} 23... Kf8 {[%clk 0:01:44.8]}
24. Nd3 {[%clk 0:00:28.7]} 24... Rea8 {[%clk 0:01:38.4]} 25. Nb2 {[%clk
0:00:27.4]} 25... a4 {[%clk 0:01:36]} 26. bxa4 {[%clk 0:00:23.6]} 26... Bxa4
{[%clk 0:01:32.6]} 27. Nxa4 {[%clk 0:00:19.2]} 27... Rxa4 {[%clk 0:01:32.6]} 28.
Rae1 {[%clk 0:00:16.6]} 28... R8a7 {[%clk 0:01:32]} 29. Bf1 {[%clk 0:00:15.4]}
29... Ra2 {[%clk 0:01:31.1]} 30. Nb3 {[%clk 0:00:14.1]} 30... Rb2 {[%clk
0:01:31]} 31. f4 {[%clk 0:00:09.8]} 31... Ra3 {[%clk 0:01:26.4]} 32. Nc1 {[%clk
0:00:06.3]} 32... Rxe3 {[%clk 0:01:22.6]} 33. Rxe3 {[%clk 0:00:06.4]} 33... Rc2
{[%clk 0:01:23]} 0-1